fUST/lending_fUST_20251018
["ID","MTS","AMOUNT","RATE_DAILY","PERIOD"]
[391751639,1760775503841,-428.59408235,0.00024354,2]
[391751640,1760775505407,182.8132835,0.00024354,2]
[391751641,1760775535752,522.38809441,0.00034124,60]
[391751642,1760775536987,-289.5331446,0.00024354,2]
[391751649,1760775570251,-446.84647845,0.0002421,2]
[391751653,1760775581918,956.234255,0.00013699,2]
[391751654,1760775582142,956.234255,0.00020187,2]
[391751655,1760775639706,-800.0,0.00024351,2]
[391751656,1760775709346,-1392.4717064,0.00024354,2]
[391751657,1760775778697,-375.01982203,0.00024354,2]
[391751658,1760775824341,168.723552,0.00011724,2]
[391751659,1760775824556,168.723552,0.00023447,2]
[391751660,1760775828303,2411.67,0.0002415,2]
[391751661,1760775842056,193.377208,0.00023447,2]
[391751662,1760775847160,158.4,0.00023873,2]
[391751664,1760775884471,-231.62651568,0.00024353,2]
[391751687,1760775915487,328.5724638,0.00023634,2]
[391751688,1760775915942,417.4877548,0.00023446,30]
[391751690,1760775954063,-417.15472785,0.00024354,2]
[391751691,1760775966488,928.31447094,0.0002435,2]
[391751693,1760776005299,-170.51771804,0.00024353,2]
[391751694,1760776056580,-328.14234432,0.0002435,2]
[391751695,1760776068576,447.074628,0.00034123,60]
[391751706,1760776093688,182.38632524,0.00029041,120]
[391751707,1760776118003,9486.10350659,0.0002,2]
[391751711,1760776180423,-800.0,0.00024342,2]
[391751712,1760776190895,-180.10818472,0.00024427,2]
[391751713,1760776194576,-467.96733238,0.00024427,2]
[391751714,1760776196634,-151.9244829,0.00024427,2]
[391751715,1760776196655,-202.23145693,0.00024427,2]
[391751716,1760776198065,-300.0,0.00024427,2]
[391751717,1760776200649,-127.80375048,0.00024427,2]
[391751718,1760776200672,-146.07633228,0.00024427,2]
[391751719,1760776203162,442497.03260592,0.00034123,60]
[391751720,1760776214822,-195.0,0.0002435,2]
[391751722,1760776216848,-6193.62832013,0.0002435,2]
[391751723,1760776217001,-10000.01,0.0002435,2]
[391751724,1760776219570,-10000.01,0.0002435,2]
[391751725,1760776222577,-313.75710761,0.0002435,2]
[391751726,1760776222607,-9372.49578478,0.0002435,2]
[391751727,1760776224832,261.0,0.00024086,2]
[391751728,1760776226450,618.87631396,0.0002435,2]
[391751729,1760776230722,-406.26020855,0.000244,7]
[391751773,1760776231751,-1181.17854622,0.000244,7]
[391751808,1760776237617,-380.89502363,0.000244,7]
[391751810,1760776237628,-717.12731951,0.000244,7]
[391751811,1760776237640,-1063.53890209,0.000244,7]
[391751812,1760776237650,-33.08068555,0.00024427,2]
[391751813,1760776237660,-705.11353752,0.00024435,2]
[391751831,1760776239955,-3e-08,0.00024435,2]
[391751849,1760776242757,-118.66555097,0.00024435,2]
[391751850,1760776242766,-300.0,0.00024439,2]
[391751851,1760776242776,-499.09,0.0002444,3]
[391751852,1760776242786,-606.04,0.0002444,3]
[391751853,1760776242795,-303.02,0.0002444,3]
[391751854,1760776242805,-151.51,0.0002444,3]
[391751855,1760776242815,-454.58,0.0002444,3]
[391751856,1760776242824,-500.0,0.00024443,2]
[391751857,1760776242834,-500.0,0.00024443,2]
[391751858,1760776242844,-7855.9782019,0.00024447,2]
[391751859,1760776242853,-152.896,0.00024449,7]
[391751860,1760776242864,-170.0,0.00024449,2]
[391751861,1760776242873,-249.22,0.0002445,2]
[391751862,1760776242882,-212385.05352008,0.0002445,2]
[391751866,1760776243885,5000.0,0.0002415,2]
[391751988,1760776265572,-249.8828135,0.00024371,2]
[391751989,1760776268224,5000.0,0.0002415,2]
[391751990,1760776291749,0.01,0.0002415,2]
[391751991,1760776291775,4999.99,0.0002415,2]
[391751992,1760776326713,899.69928088,0.00034124,120]
[391751993,1760776353064,1000.0,0.00034124,60]
[391751994,1760776354154,1000.0,0.00034124,60]
[391751995,1760776355010,1000.0,0.00034124,60]
[391751996,1760776355824,1000.0,0.00034124,60]
[391751997,1760776356854,1000.0,0.00034124,60]
[391751998,1760776433840,262.24,0.00034124,120]
[391751999,1760776441957,168.0,0.00023807,2]
[391752000,1760776445247,168.0,0.00023269,2]
[391752001,1760776449014,168.0,0.00023581,2]
[391752002,1760776457269,1178.11,0.00034124,60]
[391752003,1760776469171,1000.0,0.00034124,60]
[391752004,1760776471935,1000.0,0.00034124,60]
[391752005,1760776627821,-300.0,0.00024349,2]
[391752006,1760776697312,-300.0,0.00024349,2]
[391752007,1760776749746,-300.0,0.00024349,2]
[391752008,1760776752169,412.5842093,0.00024253,2]
[391752009,1760776752423,175.57387747,0.00024349,2]
[391752011,1760776819200,-300.0,0.00024349,2]
[391752012,1760776852468,-168.0,0.0002419,2]
[391752013,1760776858141,168.0,0.00023626,2]
[391752014,1760776861598,168.0,0.00023341,2]
[391752015,1760776867484,-300.0,0.00024349,2]
[391752016,1760776901319,-2727.98559927,0.0002425,2]
[391752017,1760776903646,-10000.01,0.0002425,2]
[391752018,1760776903745,-10000.01,0.0002425,2]
[391752019,1760776906725,-3868.09462923,0.0002425,2]
[391752020,1760776906747,-2263.82074154,0.0002425,2]
[391752021,1760776909833,-287.12455128,0.0002425,2]
[391752022,1760776916000,5000.0,0.0002425,2]
[391752023,1760776924789,-160.42,0.0002434,3]
[391752024,1760776928662,632.82,0.0002434,3]
[391752025,1760776939929,-300.0,0.00024349,2]
[391752026,1760776956540,150.0,0.00020092,2]
[391752027,1760776957010,150.0,0.00021049,2]
[391752028,1760776957408,150.0,0.00022006,2]
[391752029,1760776957840,150.0,0.00022963,2]
[391752030,1760776958347,150.0,0.00023919,2]
[391752031,1760776991421,-300.0,0.00024349,2]
[391752032,1760776999820,573.36,0.0002434,3]
[391752033,1760777024581,-509.52471586,0.00024271,2]
[391752034,1760777025545,150.0,0.00020105,2]
[391752035,1760777026059,150.0,0.00021063,2]
[391752036,1760777026468,150.0,0.0002202,2]
[391752037,1760777039622,-286.68,0.0002434,3]
[391752038,1760777039652,-860.04,0.0002434,3]
[391752039,1760777054721,-300.0,0.00024349,2]
[391752040,1760777092114,150.0,0.00020066,2]
[391752041,1760777092521,150.0,0.00021021,2]
[391752042,1760777106168,-300.0,0.00024349,2]
[391752043,1760777114382,823.77908852,0.00024336,2]
[391752044,1760777157791,150.0,0.00020098,2]
[391752045,1760777158204,150.0,0.00021055,2]
[391752046,1760777158611,150.0,0.00022012,2]
[391752047,1760777175698,-300.0,0.00024349,2]
[391752048,1760777180846,425.14370269,0.0002425,2]
[391752049,1760777192320,500.0,0.000242,2]
[391752050,1760777210656,-200.23450353,0.000242,3]
[391752051,1760777212143,-220.91217872,0.000242,3]
[391752052,1760777223995,150.0,0.00020096,2]
[391752053,1760777224439,150.0,0.00021053,2]
[391752054,1760777226938,-78.85331775,0.000242,3]
[391752055,1760777240647,-160.22899329,0.0002425,2]
[391752056,1760777242271,-9794.91720879,0.0002425,2]
[391752057,1760777242778,-180.55350039,0.0002425,2]
[391752058,1760777244889,-10000.01,0.0002425,2]
[391752059,1760777247936,-2952.22707357,0.0002425,2]
[391752060,1760777247964,-421.14647088,0.00024302,2]
[391752061,1760777247992,-300.0,0.00024349,2]
[391752062,1760777276288,-339.68314392,0.0002425,2]
[391752063,1760777283545,5001.0,0.00025,120]
[391752064,1760777288636,150.0,0.00020076,2]
[391752065,1760777289063,150.0,0.00021032,2]
[391752066,1760777289496,150.0,0.00021988,2]
[391752067,1760777289938,150.0,0.00022944,2]
[391752068,1760777290374,150.0,0.000239,2]
[391752069,1760777291251,-5000.0,0.00024349,2]
[391752070,1760777291388,-300.0,0.00024349,2]
[391752071,1760777304765,153.69168577,0.00024,5]
[391752072,1760777358366,150.0,0.00020052,2]
[391752073,1760777358863,150.0,0.00021007,2]
[391752074,1760777359290,150.0,0.00021962,2]
[391752075,1760777360950,-300.0,0.00024349,2]
[391752076,1760777412271,-178.48,0.0002434,2]
[391752077,1760777415405,823.77908852,0.00024336,2]
[391752078,1760777427187,-300.0,0.00024349,2]
[391752171,1760777437775,-200.0,0.0002435,10]
[391752172,1760777437785,-200.0,0.0002435,10]
[391752173,1760777437794,-217.490479,0.0002435,10]
[391752174,1760777437803,-179.04422313,0.0002435,2]
[391752175,1760777437812,-2837.8192306,0.0002435,2]
[391752810,1760777478732,-372.00073988,0.0002425,2]
[391752811,1760777493996,-300.0,0.00024349,2]
[391752812,1760777527054,-300.0,0.00024349,2]
[391752813,1760777532981,226.45542928,0.0002425,2]
[391752814,1760777571597,10000.01,0.00024,2]
[391752815,1760777571618,10000.01,0.00024,2]
[391752816,1760777571640,5106.50776819,0.00024,2]
[391752817,1760777584325,-300.0,0.00024249,2]
[391752818,1760777584489,-1889.58602824,0.0002425,2]
[391752819,1760777587311,-10000.01,0.0002425,2]
[391752820,1760777599440,-3419.25660744,0.0002425,2]
[391752821,1760777599462,-3161.49678512,0.0002425,2]
[391752822,1760777614435,-286.68,0.0002434,3]
[391752823,1760777614880,860.04,0.0002434,3]
[391752824,1760777647770,-300.0,0.00024348,2]
[391752825,1760777662712,-500.0,0.00024349,2]
[391752826,1760777662738,-499.89,0.00024349,2]
[391752827,1760777672347,500.0,0.00024348,2]
[391752828,1760777672374,500.0,0.00024348,2]
[391752829,1760777672399,500.0,0.00024348,2]
[391752830,1760777672424,500.0,0.00024348,2]
[391752831,1760777672450,500.0,0.00024348,2]
[391752832,1760777672476,500.0,0.00024348,2]
[391752833,1760777672501,271.54183361,0.00024348,2]
[391752834,1760777672529,500.0,0.00024348,2]
[391752835,1760777672554,635.26934183,0.00024348,2]
[391752836,1760777672583,500.0,0.00024348,2]
[391752837,1760777672608,500.0,0.00024348,2]
[391752838,1760777672634,500.0,0.00024348,2]
[391752839,1760777672658,500.0,0.00024348,2]
[391752840,1760777672684,500.0,0.00024348,2]
[391752841,1760777672710,500.0,0.00024348,2]
[391752842,1760777672737,500.0,0.00024348,2]
[391752843,1760777672764,93.41882456,0.00024348,2]
[391752844,1760777672787,406.58117544,0.00024348,2]
[391752845,1760777672994,500.0,0.00024348,2]
[391752846,1760777673021,500.0,0.00024348,2]
[391752847,1760777673050,500.0,0.00024348,2]
[391752848,1760777673078,500.0,0.00024348,2]
[391752849,1760777673107,443.18521076,0.00024348,2]
[391752850,1760777673133,500.0,0.00024348,2]
[391752851,1760777673158,300.0,0.00024348,2]
[391752852,1760777673185,500.0,0.00024348,2]
[391752853,1760777673216,500.0,0.00024348,2]
[391752854,1760777673242,500.0,0.00024348,2]
[391752855,1760777673268,245.03608089,0.00024348,2]
[391752856,1760777673294,500.0,0.00024348,2]
[391752857,1760777673324,500.0,0.00024348,2]
[391752858,1760777673353,500.0,0.00024348,2]
[391752859,1760777673381,500.0,0.00024348,2]
[391752860,1760777673409,500.0,0.00024348,2]
[391752861,1760777673441,500.0,0.00024348,2]
[391752862,1760777673474,500.0,0.00024348,2]
[391752863,1760777673506,415.84858318,0.00024348,2]
[391752864,1760777673534,500.0,0.00024348,2]
[391752865,1760777673559,189.35894973,0.00024348,2]
[391752866,1760777673580,310.64105027,0.00024348,2]
[391752867,1760777673625,500.0,0.00024348,2]
[391752868,1760777673655,500.0,0.00024348,2]
[391752869,1760777673683,500.0,0.00024348,2]
[391752870,1760777673722,500.0,0.00024348,2]
[391752871,1760777673747,238.15487429,0.00024348,2]
[391752872,1760777673783,500.0,0.00024348,2]
[391752873,1760777673813,500.0,0.00024348,2]
[391752874,1760777673841,500.0,0.00024348,2]
[391752875,1760777673868,500.0,0.00024348,2]
[391752876,1760777673902,500.0,0.00024348,2]
[391752877,1760777673935,500.0,0.00024348,2]
[391752878,1760777673961,500.0,0.00024348,2]
[391752879,1760777673992,500.0,0.00024348,2]
[391752880,1760777674019,500.0,0.00024348,2]
[391752881,1760777674051,500.0,0.00024348,2]
[391752882,1760777674077,473.36641117,0.00024348,2]
[391752883,1760777674113,500.0,0.00024348,2]
[391752884,1760777674144,500.0,0.00024348,2]
[391752885,1760777674171,500.0,0.00024348,2]
[391752886,1760777674202,477.84766427,0.00024348,2]
[391752887,1760777674224,22.15233573,0.00024348,2]
[391752888,1760777674256,500.0,0.00024348,2]
[391752889,1760777674288,500.0,0.00024348,2]
[391752890,1760777684048,500.0,0.00024348,2]
[391752891,1760777688781,500.0,0.00024349,2]
[391752892,1760777689183,500.0,0.00024349,2]
[391752893,1760777689299,513.49494622,0.00024349,2]
[391752894,1760777690201,463.72243837,0.00024348,2]
[391752895,1760777701349,325.50064736,0.0002425,2]
[391752896,1760777701572,585.0,0.00029,120]
[391752897,1760777702540,300.0,0.00024349,2]
[391752898,1760777714709,823.77908852,0.00024336,2]
[391752899,1760777762716,300.0,0.00024349,2]
[391752900,1760777793281,226.45542926,0.0002425,2]
[391752901,1760777807436,275.0154466,0.00024267,2]
[391752902,1760777822252,300.0,0.00024348,2]
[391752903,1760777882325,300.0,0.00024348,2]
[391752904,1760777942241,300.0,0.00024348,2]
[391752905,1760777951832,284.81306644,0.00024285,2]
[391752906,1760777956504,4087.22893723,0.0002425,2]
[391752907,1760777956528,10000.01,0.0002425,2]
[391752908,1760777956552,10000.01,0.0002425,2]
[391752909,1760777956581,10000.01,0.0002425,2]
[391752910,1760777956604,10000.01,0.0002425,2]
[391752911,1760777956628,10000.01,0.0002425,2]
[391752912,1760777956652,10000.01,0.0002425,2]
[391752913,1760777956678,10000.01,0.0002425,2]
[391752914,1760777962908,-117.58766427,0.0002425,2]
[391752915,1760777963019,-10000.01,0.0002425,2]
[391752916,1760777964812,-10000.01,0.0002425,2]
[391752917,1760777964946,-10000.01,0.0002425,2]
[391752918,1760777965067,-10000.01,0.0002425,2]
[391752919,1760777965236,-10000.01,0.0002425,2]
[391752920,1760777965356,-10000.01,0.0002425,2]
[391752921,1760777965532,-10000.01,0.0002425,2]
[391752922,1760777965653,-10000.01,0.0002425,2]
[391752923,1760777965761,-10000.01,0.0002425,2]
[391752924,1760777967853,-10000.01,0.0002425,2]
[391752925,1760777967979,-10000.01,0.0002425,2]
[391752926,1760777979987,-5000.0,0.00024008,2]
[391752927,1760777980038,-0.01,0.0002425,2]
[391752928,1760777980367,-10000.01,0.0002425,2]
[391752929,1760777980473,-10000.01,0.0002425,2]
[391752930,1760777980572,-10000.01,0.0002425,2]
[391752931,1760777980698,-10000.01,0.0002425,2]
[391752932,1760777980880,-10000.01,0.0002425,2]
[391752933,1760777980998,-10000.01,0.0002425,2]
[391752934,1760777981072,-10000.01,0.0002425,2]
[391752935,1760777982898,-10000.01,0.0002425,2]
[391752936,1760777983024,-10000.01,0.0002425,2]
[391752937,1760777983142,-10000.01,0.0002425,2]
[391752938,1760777986085,-5000.0,0.0002422,2]
[391752939,1760777986117,-0.01,0.0002425,2]
[391752940,1760777986281,-10000.01,0.0002425,2]
[391752941,1760777986426,-10000.01,0.0002425,2]
[391752942,1760777986562,-10000.01,0.0002425,2]
[391752943,1760777991940,-10000.01,0.0002425,2]
[391752944,1760777992053,-10000.01,0.0002425,2]
[391752945,1760777992213,-10000.01,0.0002425,2]
[391752946,1760777992330,-10000.01,0.0002425,2]
[391752947,1760777992561,-10000.01,0.0002425,2]
[391752948,1760778005629,-158.44326257,0.00024008,2]
[391752949,1760778007115,-241.80357263,0.00024008,2]
[391752950,1760778009375,-300.0,0.00024008,2]
[391752951,1760778011576,-150.0,0.00019517,2]
[391752952,1760778011604,-47.39357263,0.00020446,2]
[391752953,1760778013233,-178.24642737,0.00020446,2]
[391752954,1760778013660,-257.69340494,0.00021376,2]
[391752955,1760778015519,-80.76659506,0.00021376,2]
[391752956,1760778015544,-219.23340494,0.00022305,2]
[391752957,1760778019701,-326.76988924,0.00021162,2]
[391752958,1760778028248,-4673.23011076,0.00021162,2]
[391752959,1760778028787,-207.0707259,0.00022305,2]
[391752960,1760778035553,-272.87246673,0.00022082,2]
[391752961,1760778037637,-172.47296786,0.00022082,2]
[391752962,1760778040580,-319.0,0.00022082,2]
[391752963,1760778043205,-168.0,0.00022082,2]
[391752964,1760778043236,-4067.65456541,0.00022082,2]
[391752965,1760778058321,-24.97586916,0.00022305,2]
[391752966,1760778059072,-174.82904481,0.00023234,2]
[391752967,1760778062484,-166.0,0.00023234,2]
[391752968,1760778073465,-223.27095519,0.00023234,2]
[391752969,1760778088550,-1162.64438596,0.00023897,2]
[391752970,1760778089292,150.0,0.00019526,2]
[391752971,1760778089832,181.62,0.00020456,2]
[391752972,1760778090187,272.43,0.00021385,2]
[391752973,1760778090675,363.23,0.00022315,2]
[391752974,1760778091089,454.04,0.00023245,2]
[391752975,1760778093921,300.0,0.000223,2]
[391752976,1760778095637,-268.2518802,0.00024008,2]
[391752977,1760778099428,-374.21803242,0.00024008,2]
[391752978,1760778101414,-280.32084301,0.00024008,2]
[391752979,1760778102993,-153.0,0.00024008,2]
[391752980,1760778103646,-3223.96240917,0.00024008,2]
[391752981,1760778108059,300.0,0.000223,2]
[391752982,1760778113133,3252.08518166,0.00023273,2]
[391752983,1760778113156,1747.91481834,0.00023273,2]
[391752984,1760778115233,5000.0,0.00024008,2]
[391752985,1760778118716,-544.85,0.00024175,2]
[391752986,1760778119974,300.0,0.000223,2]
[391752987,1760778132266,300.0,0.000223,2]
[391752988,1760778137009,-300.0,0.00024249,2]
[391752989,1760778138934,5000.0,0.00024007,2]
[391752990,1760778144943,300.0,0.000223,2]
[391752991,1760778149864,300.0,0.000232,2]
[391752992,1760778149952,1200.0,0.00024249,2]
[391752993,1760778151149,291.546342,0.00034117,120]
[391752994,1760778155611,800.0,0.00024193,2]
[391752995,1760778157615,300.0,0.000223,2]
[391752996,1760778162491,1500.01,0.00024249,2]
[391752997,1760778162513,3499.99,0.00024249,2]
[391752998,1760778166584,300.0,0.000232,2]
[391752999,1760778166684,150.0,0.00019537,2]
[391753000,1760778167172,150.0,0.00020467,2]
[391753001,1760778167559,197.35,0.00021397,2]
[391753002,1760778168000,263.14,0.00022328,2]
[391753003,1760778168435,328.92,0.00023258,2]
[391753004,1760778168841,394.71,0.00024188,2]
[391753005,1760778171942,168.0,0.00024223,2]
[391753006,1760778182868,300.0,0.00024249,2]
[391753007,1760778183933,2261.0,0.00024172,2]
[391753008,1760778242005,150.0,0.00019523,2]
[391753009,1760778242415,150.0,0.00020453,2]
[391753010,1760778242468,300.0,0.00024249,2]
[391753011,1760778242866,150.0,0.00021383,2]
[391753012,1760778243440,187.58,0.00022312,2]
[391753013,1760778243881,234.48,0.00023242,2]
[391753014,1760778244438,281.37,0.00024172,2]
[391753015,1760778247454,157.0,9.3e-07,2]
[391753016,1760778275179,2849.5313607,0.00023393,2]
[391753017,1760778302516,300.0,0.00024249,2]
[391753018,1760778304253,1200.0,0.00024249,2]
[391753019,1760778309808,860.610829,0.00013699,2]
[391753020,1760778310007,860.610829,0.00020187,2]
[391753022,1760778316436,150.0,0.00019536,2]
[391753023,1760778316786,150.0,0.00020466,2]
[391753024,1760778317348,150.0,0.00021396,2]
[391753025,1760778317821,150.0,0.00022327,2]
[391753026,1760778318220,161.08,0.00023257,2]
[391753027,1760778318670,193.29,0.00024187,2]
[391753029,1760778363273,300.0,0.00024249,2]
[391753030,1760778380299,3489.51,0.0002425,2]
[391753031,1760778389983,150.0,0.00019543,2]
[391753032,1760778390447,150.0,0.00020474,2]
[391753033,1760778390862,150.0,0.00021404,2]
[391753034,1760778391260,150.0,0.00022335,2]
[391753035,1760778391693,150.0,0.00023266,2]
[391753036,1760778392188,150.0,0.00024196,2]
[391753037,1760778393378,168.0,0.0002415,2]
[391753038,1760778399328,168.0,0.00023884,2]
[391753039,1760778404152,168.0,0.00024231,2]
[391753040,1760778410169,168.0,0.00023811,2]
[391753041,1760778418573,885.0,0.00023849,2]
[391753042,1760778422727,300.0,0.00024249,2]
[391753043,1760778450413,1200.0,0.00024249,2]
[391753044,1760778461774,150.0,0.00019537,2]
[391753045,1760778462244,150.0,0.00020467,2]
[391753046,1760778462781,150.0,0.00021398,2]
[391753047,1760778463178,150.0,0.00022328,2]
[391753048,1760778482629,300.0,0.00024249,2]
[391753049,1760778485914,435.686253,0.00023356,2]
[391753050,1760778520604,-4205.2066015,0.0002425,2]
[391753051,1760778520827,-1589.596797,0.0002425,2]
[391753052,1760778520856,-187.73984633,0.0002425,2]
[391753053,1760778520886,-536.0079495,0.00024258,2]
[391753054,1760778520913,-1000.0,0.000243,3]
[391753055,1760778520940,-500.0,0.00024349,2]
[391753056,1760778520967,-500.0,0.00024349,2]
[391753057,1760778520993,-500.0,0.00024349,2]
[391753058,1760778521020,-150.0,0.00024349,2]
[391753059,1760778521165,-500.0,0.00024349,2]
[391753060,1760778521191,-500.0,0.00024349,2]
[391753061,1760778521216,-500.0,0.00024349,2]
[391753062,1760778521242,-500.0,0.00024349,2]
[391753063,1760778521268,-500.0,0.00024349,2]
[391753064,1760778521294,-499.89,0.00024349,2]
[391753065,1760778521320,-501.7656319,0.00024349,2]
[391753066,1760778521346,-403.37338281,0.00024349,2]
[391753067,1760778521371,-600.0,0.00024388,2]
[391753068,1760778521397,-166.17288206,0.00024394,2]
[391753069,1760778521757,-657.60620646,0.00024394,2]
[391753070,1760778521785,-151.0,0.000244,6]
[391753071,1760778521816,-151.0,0.000244,8]
[391753072,1760778521846,-500.0,0.00024403,2]
[391753073,1760778521874,-200.0,0.00024403,2]
[391753074,1760778521902,-500.0,0.00024403,2]
[391753075,1760778521930,-268.42762035,0.00024403,2]
[391753076,1760778521957,-193.89289788,0.00024403,2]
[391753077,1760778521984,-379.37633644,0.00024403,2]
[391753078,1760778522012,-447.33664111,0.00024403,2]
[391753079,1760778522040,-500.0,0.00024403,2]
[391753080,1760778522067,-500.0,0.00024403,2]
[391753081,1760778522094,-215.90946786,0.00024403,2]
[391753082,1760778523609,-712.3127001,0.00024404,2]
[391753083,1760778523640,-2261.0,0.00024404,2]
[391753084,1760778523780,-2144.0317981,0.00024406,2]
[391753085,1760778523923,-4288.0635962,0.00024406,2]
[391753086,1760778526585,-1423.8828076,0.00024406,2]
[391753087,1760778529603,-3597.7344019,0.00024409,2]
[391753088,1760778529678,-10000.01,0.00024409,2]
[391753089,1760778529818,-10000.01,0.00024409,2]
[391753090,1760778529958,-4316.6618115,0.00024409,2]
[391753091,1760778529998,-235.563625,0.00024409,7]
[391753092,1760778530031,-200.033769,0.00024409,7]
[391753093,1760778530070,-200.033769,0.00024409,7]
[391753094,1760778530177,-95.424051,0.00024409,7]
[391753095,1760778569729,1962.0,0.00024142,2]
[391753096,1760778586661,388.31436248,0.0002332,5]
[391753097,1760778587105,-842.33054564,0.00024388,2]
[391753098,1760778587132,-896.45707677,0.00024412,2]
[391753099,1760778587160,-152.897,0.00024421,7]
[391753100,1760778587187,-300.0,0.00024432,2]
[391753101,1760778587331,-3266.3263927,0.00024433,2]
[391753102,1760778592991,-10000.01,0.00024433,2]
[391753124,1760778603723,5000.0,0.00024142,2]
[391753125,1760778620290,2858.7828071,0.00023623,2]
[391753126,1760778624309,2141.2271929,0.00024,2]
[391753127,1760778624330,10000.01,0.00024,2]
[391753128,1760778624352,10000.01,0.00024,2]
[391753129,1760778624373,10000.01,0.00024,2]
[391753130,1760778624394,10000.01,0.00024,2]
[391753131,1760778624415,10000.01,0.00024,2]
[391753132,1760778624436,10000.01,0.00024,2]
[391753133,1760778624457,10000.01,0.00024,2]
[391753134,1760778624477,10000.01,0.00024,2]
[391753135,1760778624499,10000.01,0.00024,2]
[391753345,1760778640346,-3e-08,0.00024,2]
[391753346,1760778640358,-8122.38426554,0.00024,2]
[391753370,1760778641403,-10000.01,0.00024,2]
[391753458,1760778644350,-10000.01,0.00024,2]
[391753463,1760778646348,-10827.31854153,0.00024,2]
[391753464,1760778646358,-1003.380388,0.00024,2]
[391753465,1760778646367,-417.15472785,0.00024142,2]
[391753466,1760778646377,-800.0,0.00024269,2]
[391753467,1760778646387,-282.39645235,0.00024271,2]
[391753468,1760778646396,-800.0,0.00024327,2]
[391753469,1760778646405,-557.02,0.00024348,3]
[391753470,1760778646414,-502.13265484,0.00024349,2]
[391753471,1760778646423,-187.63423011,0.00024349,2]
[391753472,1760778646433,-25792.61971141,0.00024358,2]
[391753474,1760778648744,5000.0,0.0002376,2]
[391753476,1760778671623,-4547.67684351,0.00024142,2]
[391753477,1760778672125,904.65631298,0.00024142,2]
[391753478,1760778672148,4095.34368702,0.00024142,2]
[391753479,1760778695236,5000.0,0.00024142,2]
[391753480,1760778713569,185.73522897,0.00024021,12]
[391753481,1760778717896,4814.27477103,0.00024142,2]
[391753482,1760778717919,185.72522897,0.00024142,2]
[391753483,1760778742481,5000.0,0.00024142,2]
[391753489,1760778766005,4553.15352155,0.00024142,2]
[391753490,1760778850727,1158.55450424,0.00034118,60]
[391753491,1760778898247,-800.0,0.00024217,2]
[391753492,1760778898275,-800.0,0.00024238,2]
[391753493,1760778898303,-885.8811552,0.00024257,2]
[391753494,1760778898329,-671.28949067,0.00024273,2]
[391753495,1760778901114,-3685.66870826,0.00024273,2]
[391753496,1760778901145,-168.0,0.00024304,2]
[391753497,1760778901174,-300.0,0.00024347,2]
[391753498,1760778901201,-175.154,0.00024348,2]
[391753499,1760778901229,-570.72,0.00024348,3]
[391753500,1760778904175,-300.0,0.00024347,2]
[391753501,1760778904207,-285.36,0.00024348,3]
[391753502,1760778904237,-856.12,0.00024348,3]